bitfinex-derivatives/quotes_BTCF0:USTF0_20251111
["timestamp","ask_amount","ask_price","bid_price","bid_amount"]
[1762880026910,0.02215023,103640.0,103630.0,0.51748933]
[1762880027107,0.02315023,103640.0,103630.0,0.51748933]
[1762880027310,0.06820023,103640.0,103630.0,0.51748933]
[1762880027520,0.16471223,103640.0,103630.0,0.51748933]
[1762880027725,0.35900083,103640.0,103630.0,0.51748933]
[1762880027913,0.35800083,103640.0,103630.0,0.51848933]
[1762880028124,0.26148883,103640.0,103630.0,0.51848933]
[1762880028520,0.35800083,103640.0,103630.0,0.51848933]
[1762880028818,0.35700083,103640.0,103630.0,0.51848933]
[1762880029925,0.26048883,103640.0,103630.0,0.51848933]
[1762880030317,0.02115023,103640.0,103630.0,0.51848933]
[1762880032022,0.06432023,103640.0,103630.0,0.51848933]
[1762880032222,0.17384233,103640.0,103630.0,0.51848933]
[1762880032527,0.45858348,103640.0,103630.0,0.51848933]
[1762880032922,0.51063879,103640.0,103630.0,0.51848933]
[1762880033324,0.22591186,103640.0,103630.0,0.51748933]
[1762880033526,0.11738976,103640.0,103630.0,0.51748933]
[1762880033824,0.21490186,103640.0,103630.0,0.51748933]
[1762880034020,0.11838976,103640.0,103630.0,0.51748933]
[1762880034726,0.51263879,103640.0,103630.0,0.09871933]
[1762880035022,0.51263879,103640.0,103630.0,0.14244933]
[1762880035227,0.7622668,103640.0,103630.0,0.15559933]
[1762880035726,0.8587789,103640.0,103630.0,0.15559933]
[1762880036924,0.8577789,103640.0,103630.0,0.15559933]
[1762880037117,0.8587789,103640.0,103630.0,0.15559933]
[1762880037923,0.80672359,103640.0,103630.0,0.15559933]
[1762880038928,0.80672349,103640.0,103630.0,0.15559933]
[1762880040726,0.71021149,103640.0,103630.0,0.51639933]
[1762880041211,0.80672349,103640.0,103630.0,0.51639933]
[1762880042020,1.16752349,103640.0,103630.0,0.04592803]
[1762880042221,0.1549213,103630.0,103620.0,0.1429828]
[1762880042421,0.43964823,103630.0,103620.0,0.14518083]
[1762880043129,0.43964823,103630.0,103620.0,0.17970809]
[1762880043426,0.43964823,103630.0,103620.0,0.13425599]
[1762880044017,0.1549213,103630.0,103620.0,0.19346599]
[1762880044420,0.80044823,103630.0,103620.0,0.18071599]
[1762880044631,0.80044823,103630.0,103620.0,0.03772529]
[1762880045228,0.43964823,103630.0,103620.0,0.15744599]
[1762880045430,0.80044823,103630.0,103620.0,0.15744599]
[1762880045633,0.80044823,103630.0,103620.0,0.18071599]
[1762880045824,0.80044823,103630.0,103620.0,0.13425599]
[1762880046631,0.80044823,103630.0,103620.0,0.03772529]
[1762880046826,0.80044823,103630.0,103620.0,0.001]
[1762880047224,0.94469067,103630.0,103620.0,0.001]
[1762880048734,0.65996374,103630.0,103620.0,0.09972873]
[1762880048929,0.94469067,103630.0,103620.0,0.12291873]
[1762880049127,0.94569067,103630.0,103620.0,0.12291873]
[1762880049332,1.31285067,103630.0,103620.0,0.09872873]
[1762880049533,1.31485067,103630.0,103620.0,0.09872873]
[1762880050329,1.31485067,103630.0,103620.0,0.12191873]
[1762880050531,1.31485067,103630.0,103620.0,0.14518873]
[1762880050733,1.31485067,103630.0,103620.0,0.04865803]
[1762880050934,1.31485067,103630.0,103620.0,0.12191873]
[1762880051332,1.31485067,103630.0,103620.0,0.14518873]
[1762880052229,1.31485067,103630.0,103620.0,0.04865803]
[1762880052431,1.31485067,103630.0,103620.0,0.00219803]
[1762880052932,1.18554628,103630.0,103620.0,0.00219803]
[1762880053334,0.1549307,103620.0,103610.0,0.2296562]
[1762880053636,0.67115324,103620.0,103610.0,0.23186033]
[1762880054325,0.82657578,103620.0,103610.0,0.08886033]
[1762880054525,0.82657578,103620.0,103610.0,0.03467182]
[1762880054721,0.82757578,103620.0,103610.0,0.03467182]
[1762880054920,0.8017366,103620.0,103610.0,0.03467182]
[1762880055833,0.8027366,103620.0,103610.0,0.03467182]
[1762880056232,0.94675271,103620.0,103610.0,0.03467182]
[1762880056630,0.15494,103610.0,103600.0,0.08651774]
[1762880056832,1.1679059,103610.0,103600.0,0.08651774]
[1762880057030,1.31192201,103610.0,103600.0,0.08651774]
[1762880057230,1.31192201,103610.0,103600.0,0.08871577]
[1762880057426,1.02691611,103610.0,103600.0,0.23172507]
[1762880057731,1.31192201,103610.0,103600.0,0.23272507]
[1762880058237,1.31192201,103610.0,103600.0,0.08971577]
[1762880058536,1.31192201,103610.0,103600.0,0.18626507]
[1762880059036,1.31292201,103610.0,103600.0,0.23172507]
[1762880059437,1.31392201,103610.0,103600.0,0.23172507]
[1762880059829,1.31392201,103610.0,103600.0,0.20845507]
[1762880060425,1.31392201,103610.0,103600.0,0.09874733]
[1762880061035,1.31392201,103610.0,103600.0,0.12071733]
[1762880061332,1.31392201,103610.0,103600.0,0.50253733]
[1762880061333,0.3454059,103610.0,103600.0,0.50253733]
[1762880061532,0.7126059,103610.0,103600.0,0.50253733]
[1762880062332,0.8091459,103610.0,103600.0,0.50253733]
[1762880062836,0.8091459,103610.0,103600.0,0.14173733]
[1762880063039,1.1699459,103610.0,103600.0,0.14173733]
[1762880063730,1.0734059,103610.0,103600.0,0.14173733]
[1762880064541,1.1699459,103610.0,103600.0,0.14173733]
[1762880064727,1.0734059,103610.0,103600.0,0.14173733]
[1762880065132,0.7126059,103610.0,103600.0,0.14173733]
[1762880065332,1.0734059,103610.0,103600.0,0.14173733]
[1762880065534,0.7126059,103610.0,103600.0,0.14173733]
[1762880067338,0.8091459,103610.0,103600.0,0.14173733]
[1762880067645,0.7126059,103610.0,103600.0,0.14173733]
[1762880068236,0.8091459,103610.0,103600.0,0.14173733]
[1762880069740,0.4419459,103610.0,103600.0,0.14173733]
[1762880070045,0.8091459,103610.0,103600.0,0.14173733]
[1762880070844,0.7126059,103610.0,103600.0,0.14173733]
[1762880071039,0.4276,103610.0,103600.0,0.15550733]
[1762880071338,0.7126059,103610.0,103600.0,0.51630733]
[1762880071535,0.04729,103610.0,103600.0,0.51630733]
[1762880071744,0.06107,103610.0,103600.0,0.51630733]
[1762880072043,0.41449,103610.0,103600.0,0.51630733]
[1762880072846,0.52481,103610.0,103600.0,0.51630733]
[1762880073145,0.7132759,103610.0,103600.0,0.51630733]
[1762880073350,0.42827,103610.0,103600.0,0.51630733]
[1762880074032,0.41449,103610.0,103600.0,0.51630733]
[1762880074536,0.04729,103610.0,103600.0,0.51630733]
[1762880074742,0.41449,103610.0,103600.0,0.51630733]
[1762880075943,0.04729,103610.0,103600.0,0.51630733]
[1762880076246,0.06770155,103610.0,103600.0,0.51630733]
[1762880076437,0.53144155,103610.0,103600.0,0.51630733]
[1762880076636,0.83022745,103610.0,103600.0,0.50253733]
[1762880076837,0.7006819,103610.0,103600.0,0.50253733]
[1762880077036,0.6041419,103610.0,103600.0,0.50253733]
[1762880077237,0.5903619,103610.0,103600.0,0.51630733]
[1762880077433,0.6041419,103610.0,103600.0,0.51630733]
[1762880077836,0.5903619,103610.0,103600.0,0.51630733]
[1762880078246,0.43490155,103610.0,103600.0,0.51630733]
[1762880078442,0.5903619,103610.0,103600.0,0.51630733]
[1762880081049,0.2231619,103610.0,103600.0,0.51630733]
[1762880081343,0.5903619,103610.0,103600.0,0.51630733]
[1762880082855,0.7006819,103610.0,103600.0,0.50253733]
[1762880083745,0.7006819,103610.0,103600.0,0.14173733]
[1762880085250,1.11353721,103610.0,103600.0,0.09874733]
[1762880085450,1.11353721,103610.0,103600.0,0.00219803]
[1762880085753,1.11353721,103610.0,103600.0,0.09874743]
[1762880086148,1.01699721,103610.0,103600.0,0.14173743]
[1762880086650,0.86153686,103610.0,103600.0,0.15550743]
[1762880086842,0.65615721,103610.0,103600.0,0.15550743]
[1762880087049,0.28899721,103610.0,103600.0,0.14173743]
[1762880087249,0.65615721,103610.0,103600.0,0.14173743]
[1762880087750,0.28899721,103610.0,103600.0,0.14173743]
[1762880087957,0.65615721,103610.0,103600.0,0.14173743]
[1762880089356,0.28899721,103610.0,103600.0,0.14173743]
[1762880089556,0.65615721,103610.0,103600.0,0.14173743]
[1762880089754,0.28899721,103610.0,103600.0,0.14173743]
[1762880089953,0.65615721,103610.0,103600.0,0.14173743]
[1762880090155,0.75269721,103610.0,103600.0,0.14173743]
[1762880090555,0.65615721,103610.0,103600.0,0.14173743]
[1762880090956,0.75267294,103610.0,103600.0,0.14173743]
[1762880091252,0.65613294,103610.0,103600.0,0.14173743]
[1762880091455,0.75267294,103610.0,103600.0,0.14173743]
[1762880092056,0.90810902,103610.0,103600.0,0.14173743]
[1762880093060,0.85605371,103610.0,103600.0,0.09874743]
[1762880093761,1.21685371,103610.0,103600.0,0.09874743]
[1762880094261,1.21685371,103610.0,103600.0,0.09874733]
[1762880094753,1.21685371,103610.0,103600.0,0.00219803]
[1762880095154,0.1547693,103600.0,103590.0,0.11856616]
[1762880095359,0.84685301,103600.0,103590.0,0.12076419]
[1762880095566,0.48605301,103600.0,103590.0,0.12076419]
[1762880095866,0.38950371,103600.0,103590.0,0.14250419]
[1762880097566,0.38950371,103600.0,103590.0,0.14350419]
[1762880098366,0.48605301,103600.0,103590.0,0.14350419]
[1762880099554,0.38950371,103600.0,103590.0,0.14350419]
[1762880100459,0.48605301,103600.0,103590.0,0.14350419]
[1762880100654,1.14689185,103600.0,103590.0,0.09990119]
[1762880100971,1.14689185,103600.0,103590.0,0.00114456]
[1762880101153,1.14689185,103600.0,103590.0,4.56e-06]
[1762880103567,1.14689185,103600.0,103590.0,0.09656316]
[1762880103766,0.99145577,103600.0,103590.0,0.09876119]
[1762880104965,0.99145577,103600.0,103590.0,0.00220259]
[1762880105567,0.99145577,103600.0,103590.0,0.09876119]
[1762880106266,0.99145577,103600.0,103590.0,0.00220259]
[1762880107662,1.35861577,103600.0,103590.0,0.12175119]
[1762880107874,1.35861577,103600.0,103590.0,0.14442119]
[1762880108372,1.35861577,103600.0,103590.0,0.00220259]
[1762880108570,1.46909185,103600.0,103590.0,4.56e-06]
[1762880108971,1.46909185,103600.0,103570.0,0.05199048]
[1762880108972,0.1549679,103580.0,103570.0,0.05199048]
[1762880109166,0.65265553,103580.0,103570.0,0.0965771]
[1762880109364,0.0584,103570.0,103560.0,0.500369]
[1762880109668,0.38968371,103570.0,103560.0,0.14176703]
[1762880109862,0.23424763,103570.0,103560.0,0.50256703]
[1762880110068,0.33082493,103570.0,103560.0,0.50256703]
[1762880110974,0.33082493,103570.0,103560.0,0.50456703]
[1762880111175,0.33082493,103570.0,103560.0,0.50756703]
[1762880111475,0.31041338,103570.0,103560.0,0.50756703]
[1762880111872,0.21383608,103570.0,103560.0,0.50756703]
[1762880113875,0.21383608,103570.0,103560.0,0.52038703]
[1762880114873,0.58099608,103570.0,103560.0,0.52038703]
[1762880115475,0.21383608,103570.0,103560.0,0.52038703]
[1762880115677,0.58099608,103570.0,103560.0,0.52038703]
[1762880116078,0.20086064,103580.0,103570.0,0.1523873]
[1762880116278,0.56802064,103580.0,103570.0,0.51538533]
[1762880116579,0.72345672,103580.0,103570.0,0.51538533]
[1762880116767,0.35629672,103580.0,103570.0,0.51538533]
[1762880117074,0.35629672,103580.0,103570.0,0.67082141]
[1762880117075,0.00014456,103580.0,103570.0,0.67082141]
[1762880117268,0.36730456,103580.0,103570.0,0.67282141]
[1762880117470,0.36730456,103580.0,103570.0,0.67382141]
[1762880117779,0.17875064,103580.0,103570.0,0.67382141]
[1762880117974,0.20086064,103580.0,103570.0,0.67382141]
[1762880118388,0.20086064,103580.0,103570.0,0.51838533]
[1762880119378,0.20086064,103580.0,103570.0,0.67382141]
[1762880119879,0.15558064,103580.0,103570.0,0.67382141]
[1762880120076,0.00014456,103580.0,103570.0,0.67382141]
[1762880120272,0.15558064,103580.0,103570.0,0.67382141]
[1762880120672,0.00014456,103580.0,103570.0,0.67382141]
[1762880121181,0.19960064,103580.0,103570.0,0.67382141]
[1762880122686,0.15558064,103580.0,103570.0,0.67382141]
[1762880122984,0.17609785,103580.0,103570.0,0.67382141]
[1762880123382,0.02066177,103580.0,103570.0,0.67382141]
[1762880126080,0.02066177,103580.0,103570.0,1.04094141]
[1762880126780,0.04195177,103580.0,103570.0,1.04094141]
[1762880127285,0.22011785,103580.0,103570.0,1.04094141]
[1762880128076,0.22011785,103580.0,103570.0,0.88550533]
[1762880128374,0.48553193,103580.0,103570.0,0.50556533]
[1762880128782,0.17465977,103580.0,103570.0,0.50556533]
[1762880128982,0.48553193,103580.0,103570.0,0.50556533]
[1762880129579,0.84633193,103580.0,103570.0,0.14476533]
[1762880129781,1.00176801,103580.0,103570.0,0.003]
[1762880129981,1.14673938,103580.0,103570.0,0.003]
[1762880130382,0.1507173,103570.0,103560.0,0.0965854]
[1762880130579,1.20998667,103570.0,103560.0,0.0965854]
[1762880131783,0.1406066,103560.0,103550.0,0.50175396]
[1762880131985,0.36801216,103560.0,103550.0,0.50395199]
[1762880132685,0.3887891,103560.0,103550.0,0.51745199]
[1762880132884,0.4853757,103560.0,103550.0,0.50395199]
[1762880133083,0.36801216,103560.0,103550.0,0.55594247]
[1762880133288,0.37001216,103560.0,103550.0,0.55594247]
[1762880133888,0.46659876,103560.0,103550.0,0.55594247]
[1762880134189,0.37001216,103560.0,103550.0,0.55594247]
[1762880134383,0.46659876,103560.0,103550.0,0.56944247]
[1762880134585,0.82739876,103560.0,103550.0,0.20864247]
[1762880135179,0.82739876,103560.0,103550.0,0.07730307]
[1762880135375,0.98283484,103560.0,103550.0,0.00014456]
[1762880135580,1.14924462,103560.0,103550.0,0.09674046]
[1762880135983,0.99380854,103560.0,103550.0,0.09674046]
[1762880136381,0.99380854,103560.0,103550.0,0.00014456]
[1762880136581,1.14924462,103560.0,103550.0,0.00014456]
[1762880137485,1.14924462,103560.0,103550.0,0.09674046]
[1762880137691,0.99380854,103560.0,103550.0,0.09893849]
[1762880138190,1.14924462,103560.0,103550.0,0.00234259]
[1762880138383,1.14924462,103560.0,103550.0,0.09893849]
[1762880138582,1.14924462,103560.0,103550.0,0.00014456]
[1762880139188,0.1537359,103550.0,103540.0,0.05199048]
[1762880139387,1.19252806,103550.0,103540.0,0.05199048]
[1762880139588,1.19252806,103550.0,103540.0,0.14859568]
[1762880140190,1.19252806,103550.0,103540.0,0.05199048]
[1762880140492,1.19452806,103550.0,103540.0,0.05199048]
[1762880140889,1.19452806,103550.0,103540.0,0.14859568]
[1762880141895,1.19652806,103550.0,103540.0,0.05199048]
[1762880142989,0.8856559,103550.0,103540.0,0.15079371]
[1762880143195,1.19652806,103550.0,103540.0,0.15079371]
[1762880143388,1.19652806,103550.0,103540.0,0.14302323]
[1762880143584,0.57737608,103550.0,103540.0,0.15652323]
[1762880143894,0.94453608,103550.0,103540.0,0.20851371]
[1762880144785,1.04113198,103550.0,103540.0,0.20851371]
[1762880145195,1.09997216,103550.0,103540.0,0.20851371]
[1762880145594,0.94453608,103550.0,103540.0,0.20851371]
[1762880146194,1.04113198,103550.0,103540.0,0.20851371]
[1762880146394,0.8856959,103550.0,103540.0,0.20851371]
[1762880146594,1.04113198,103550.0,103540.0,0.20851371]
[1762880147189,0.94453608,103550.0,103540.0,0.20851371]
[1762880147991,1.04113198,103550.0,103540.0,0.20851371]
[1762880148498,0.94453608,103550.0,103540.0,0.20851371]
[1762880149102,1.04113198,103550.0,103540.0,0.20851371]
[1762880149299,1.04113198,103550.0,103540.0,0.19501371]
[1762880149901,1.19656806,103550.0,103540.0,0.19501371]
[1762880150105,1.19656806,103550.0,103540.0,0.15079371]
[1762880150401,1.19656806,103550.0,103540.0,0.17256371]
[1762880150594,1.19656806,103550.0,103540.0,0.07595851]
[1762880150799,1.19656806,103550.0,103540.0,0.05418851]
[1762880151000,1.19656806,103550.0,103540.0,0.15079381]
[1762880151203,1.19656806,103550.0,103540.0,0.19583381]
[1762880152902,1.04133219,103550.0,103540.0,0.19583381]
[1762880153497,0.94473629,103550.0,103540.0,0.19583381]
[1762880153700,0.94473629,103550.0,103540.0,0.20906381]
[1762880154304,1.04133229,103550.0,103540.0,0.20906381]
[1762880155002,1.04133229,103550.0,103540.0,0.19583381]
[1762880162403,1.04133229,103550.0,103540.0,0.17256381]
[1762880162604,1.04133229,103550.0,103540.0,0.15079381]
[1762880162812,1.04133229,103550.0,103540.0,0.17218381]
[1762880163012,1.04133229,103550.0,103540.0,0.19401381]
[1762880163401,1.04133229,103550.0,103540.0,0.14202333]
[1762880164507,1.04133229,103550.0,103540.0,0.21134397]
[1762880164701,1.04133229,103550.0,103540.0,0.06932064]
[1762880164905,0.1530153,103540.0,103530.0,0.16605436]
[1762880165107,0.66945159,103540.0,103530.0,0.00011922]
[1762880165817,0.66945159,103540.0,103530.0,0.09673382]
[1762880166209,0.66945159,103540.0,103530.0,0.14215185]
[1762880166609,0.67145159,103540.0,103530.0,0.14215185]
[1762880167909,0.21404629,103540.0,103530.0,0.14215185]
[1762880168116,0.58116629,103540.0,103530.0,0.14215185]
[1762880168513,0.67777159,103540.0,103530.0,0.14215185]
[1762880169017,0.58116629,103540.0,103530.0,0.14215185]
[1762880169220,0.60293618,103540.0,103530.0,0.14215185]
[1762880169418,0.60293618,103540.0,103530.0,0.15568185]
[1762880169623,0.59010618,103540.0,103530.0,0.15568185]
[1762880170115,0.22298618,103540.0,103530.0,0.15568185]
[1762880170614,0.59010618,103540.0,103530.0,0.51648185]
[1762880171021,0.59010618,103540.0,103530.0,0.15568185]
[1762880171219,0.69954148,103540.0,103530.0,0.15568185]
[1762880171910,0.69954148,103540.0,103530.0,0.14215185]
[1762880172716,0.60293618,103540.0,103530.0,0.14215185]
[1762880173421,0.59010618,103540.0,103530.0,0.15568185]
[1762880173814,0.59010618,103540.0,103530.0,0.51648185]
[1762880174120,0.69954148,103540.0,103530.0,0.51648185]
[1762880174823,0.60293618,103540.0,103530.0,0.51648185]
[1762880175526,0.69954148,103540.0,103530.0,0.51648185]
[1762880175819,0.33242148,103540.0,103530.0,0.51648185]
[1762880176021,0.69954148,103540.0,103530.0,0.50295185]
[1762880176314,1.06034148,103540.0,103530.0,0.14215185]
[1762880176916,0.60293618,103540.0,103530.0,0.14215185]
[1762880177323,0.60293618,103540.0,103530.0,0.50295185]
[1762880178223,0.59010618,103540.0,103530.0,0.51648185]
[1762880178925,0.22298618,103540.0,103530.0,0.51648185]
[1762880179126,0.60293618,103540.0,103530.0,0.51648185]
[1762880179624,0.23581618,103540.0,103530.0,0.51648185]
[1762880179826,0.60293618,103540.0,103530.0,0.51648185]
[1762880180723,0.43446989,103540.0,103530.0,0.51648185]
[1762880181028,0.59010618,103540.0,103530.0,0.51648185]
[1762880182428,0.70017148,103540.0,103530.0,0.51648185]
[1762880182722,0.60356618,103540.0,103530.0,0.51648185]
[1762880183028,0.56833629,103540.0,103530.0,0.51648185]
[1762880183428,0.20121629,103540.0,103530.0,0.51648185]
[1762880183632,0.41266,103540.0,103530.0,0.51648185]
[1762880183826,0.20121629,103540.0,103530.0,0.51648185]
[1762880184129,0.56829629,103540.0,103530.0,0.51648185]
[1762880184721,0.002,103540.0,103530.0,0.67211814]
[1762880185033,0.002,103540.0,103530.0,0.91359814]
[1762880185621,0.002,103540.0,103530.0,0.67211814]
[1762880186429,0.002,103540.0,103530.0,0.91359814]
[1762880188025,0.002,103540.0,103530.0,0.98291878]
[1762880188430,0.002,103540.0,103530.0,0.91359814]
[1762880188926,0.19934085,103560.0,103550.0,0.05446]
[1762880189231,0.84213718,103560.0,103550.0,0.15325393]
[1762880189833,0.84213718,103560.0,103550.0,0.14157393]
[1762880190131,0.74855058,103560.0,103550.0,0.15513393]
[1762880190327,0.73509058,103560.0,103550.0,0.15513393]
[1762880190530,0.73509058,103560.0,103550.0,0.51593393]
[1762880190731,0.59410726,103560.0,103550.0,0.51593393]
[1762880192134,0.69069386,103560.0,103550.0,0.51593393]
[1762880192634,0.70381386,103560.0,103550.0,0.51593393]
[1762880193229,0.60722726,103560.0,103550.0,0.15513393]
[1762880193630,0.60622726,103560.0,103550.0,0.50237393]
[1762880193936,0.70281386,103560.0,103550.0,0.14157393]
[1762880194633,0.69981386,103560.0,103550.0,0.14157393]
[1762880194829,0.70181386,103560.0,103550.0,0.14157393]
[1762880195626,0.85745015,103560.0,103550.0,0.02322803]
[1762880195831,1.21825015,103560.0,103550.0,0.00219803]
[1762880196235,0.1528753,103540.0,103530.0,0.00011922]
[1762880196440,1.058038,103540.0,103530.0,0.09673382]
[1762880196636,1.21367429,103540.0,103530.0,0.00011922]
[1762880196833,1.058038,103540.0,103530.0,0.00011922]
[1762880197028,1.21367429,103540.0,103530.0,0.00011922]
[1762880197229,0.05368,103520.0,103510.0,0.5002069]
[1762880197434,0.5980427,103520.0,103510.0,0.50240493]
[1762880197640,0.6946666,103520.0,103510.0,0.50240493]
[1762880198238,0.69478582,103520.0,103510.0,0.50240493]
[1762880198437,0.69478582,103520.0,103510.0,0.50740493]
[1762880198937,0.69478582,103520.0,103510.0,0.50540493]
[1762880200139,0.69478582,103520.0,103510.0,0.50240493]
[1762880200436,1.05558582,103520.0,103510.0,0.00219803]
[1762880200634,0.05668,103510.0,103500.0,0.5002154]
[1762880200832,0.21231629,103510.0,103500.0,0.50241343]
[1762880201442,0.30894959,103510.0,103500.0,0.50241343]
[1762880201642,0.30894959,103510.0,103500.0,0.14161343]
[1762880201941,0.66974959,103510.0,103500.0,0.14561343]
[1762880204643,0.57311629,103510.0,103500.0,0.14561343]
[1762880205042,0.57311629,103510.0,103500.0,0.10283343]
[1762880205647,0.66974959,103510.0,103500.0,0.14561343]
[1762880206245,0.66974959,103510.0,103500.0,0.12387063]
[1762880206444,0.66974959,103510.0,103500.0,0.10284063]
[1762880206645,0.66974959,103510.0,103500.0,0.12387063]
[1762880206946,0.66974959,103510.0,103500.0,0.14562063]
[1762880208747,0.57311629,103510.0,103500.0,0.14562063]
[1762880209641,0.21231629,103510.0,103500.0,0.15854063]
[1762880210047,0.57935629,103510.0,103500.0,0.15854063]
[1762880211637,0.57935629,103510.0,103500.0,0.51934063]
[1762880212151,0.4106,103510.0,103500.0,0.51934063]
[1762880212450,0.56623629,103510.0,103500.0,0.51934063]
[1762880212750,0.19919629,103510.0,103500.0,0.51934063]
[1762880213047,0.56623629,103510.0,103500.0,0.51934063]
[1762880214448,0.19919629,103510.0,103500.0,0.51934063]
[1762880214656,0.56623629,103510.0,103500.0,0.51934063]
[1762880214944,0.56632181,103510.0,103500.0,0.51934063]
[1762880215245,0.19928181,103510.0,103500.0,0.67506244]
[1762880215549,0.56632181,103510.0,103500.0,0.67506244]
[1762880215751,0.19928181,103510.0,103500.0,0.67506244]
[1762880216136,0.04356,103510.0,103500.0,0.67506244]
[1762880216344,0.17792181,103510.0,103500.0,0.67506244]
[1762880217247,0.19944181,103510.0,103500.0,0.67506244]
[1762880218048,0.04372,103510.0,103500.0,0.67506244]
[1762880218247,0.20189103,103520.0,103510.0,0.1562033]
[1762880218447,0.20189103,103520.0,103510.0,0.67492314]
[1762880218448,0.56893103,103520.0,103510.0,0.67492314]
[1762880218951,0.56893103,103520.0,103510.0,0.51920133]
[1762880220051,0.72465284,103520.0,103510.0,0.51920133]
[1762880220451,0.72465284,103520.0,103510.0,0.52020133]
[1762880220749,0.20189103,103520.0,103510.0,0.52020133]
[1762880221145,0.00011922,103520.0,103510.0,1.04296314]
[1762880221745,0.00011922,103520.0,103510.0,1.28448314]
[1762880221952,0.00014456,103530.0,103520.0,0.46763752]
[1762880222253,0.00014456,103530.0,103520.0,0.67491374]
[1762880222454,0.02180965,103530.0,103520.0,0.67491374]
[1762880222751,0.02180965,103530.0,103520.0,0.83063555]
[1762880222943,0.02180965,103530.0,103520.0,0.67491374]
[1762880223143,0.02280965,103530.0,103520.0,0.67491374]
[1762880223347,0.02280965,103530.0,103520.0,0.51919193]
[1762880223553,0.02280965,103530.0,103520.0,0.67491374]
[1762880224052,0.02280965,103530.0,103520.0,1.07211555]
[1762880224249,0.05205531,103540.0,103530.0,0.1561846]
[1762880224441,0.05205531,103540.0,103530.0,1.04194444]
[1762880224644,0.59779712,103550.0,103540.0,0.1561753]
[1762880224846,0.59779712,103550.0,103540.0,0.67489514]
[1762880225047,0.20777712,103550.0,103540.0,0.67489514]
[1762880225239,0.23079712,103550.0,103540.0,0.67489514]
[1762880225443,0.25382712,103550.0,103540.0,0.67489514]
[1762880226253,0.20177181,103550.0,103540.0,0.67489514]
[1762880227248,0.25380846,103550.0,103540.0,0.67589514]
[1762880228050,0.25380846,103550.0,103540.0,0.52017333]
[1762880228355,0.26693846,103550.0,103540.0,0.52017333]
[1762880229055,0.20177181,103550.0,103540.0,0.52017333]
[1762880229259,0.25381234,103550.0,103540.0,0.52017333]
[1762880230756,0.27099017,103550.0,103540.0,0.52017333]
[1762880231261,0.20177181,103550.0,103540.0,0.52017333]
[1762880232352,0.29836771,103550.0,103540.0,0.52017333]
[1762880232959,0.20177181,103550.0,103540.0,0.52017333]
[1762880235257,0.15572181,103550.0,103540.0,0.67589514]
[1762880235556,0.20177181,103550.0,103540.0,0.67589514]
[1762880235957,0.20177181,103550.0,103540.0,0.52017333]
[1762880236357,0.22332574,103550.0,103540.0,0.52017333]
[1762880236661,0.23645574,103550.0,103540.0,0.52017333]
[1762880237065,0.20177181,103550.0,103540.0,0.52017333]
[1762880237264,0.15572181,103550.0,103540.0,0.52017333]
[1762880237760,0.15586637,103560.0,103540.0,0.77250044]
[1762880237964,0.02169594,103560.0,103550.0,1.03956781]
[1762880238155,0.94236181,103580.0,103570.0,0.1423673]
[1762880238355,1.19465162,103580.0,103570.0,0.14456533]
[1762880238569,1.24669369,103580.0,103570.0,0.14456533]
[1762880239166,1.19465162,103580.0,103570.0,0.14456533]
[1762880240066,1.09808362,103580.0,103570.0,0.14456533]
[1762880240361,1.10008362,103580.0,103570.0,0.14456533]
[1762880240665,0.1534873,103570.0,103560.0,0.11885446]
[1762880240870,0.82573092,103570.0,103560.0,0.12105249]
[1762880241963,0.82573092,103570.0,103560.0,0.09892919]
[1762880242858,0.82573092,103570.0,103560.0,0.00234259]
[1762880243068,0.82573092,103570.0,103560.0,0.09892919]
[1762880243268,0.82673092,103570.0,103560.0,0.09892919]
[1762880245168,0.82673092,103570.0,103560.0,0.12105919]
[1762880245359,0.82673092,103570.0,103560.0,0.09892919]
[1762880245560,0.82673092,103570.0,103560.0,0.00234259]
[1762880246268,0.82673092,103570.0,103560.0,0.09892919]
[1762880247472,0.82673092,103570.0,103560.0,0.14292919]
[1762880247764,0.40558,103570.0,103560.0,0.15566919]
[1762880247958,0.41162,103570.0,103560.0,0.51646919]
[1762880248158,0.67744911,103570.0,103560.0,0.15566919]
[1762880248366,0.67744911,103570.0,103560.0,0.14292919]
[1762880248869,1.19397092,103570.0,103560.0,0.14292919]
[1762880250269,1.21541842,103570.0,103560.0,0.14292919]
[1762880250772,1.21541842,103570.0,103560.0,0.09892919]
[1762880251160,1.21541842,103570.0,103560.0,0.00014456]
[1762880251461,1.21541842,103570.0,103560.0,0.09673116]
[1762880251960,1.21541842,103570.0,103560.0,0.00014456]
[1762880252168,1.36013322,103570.0,103560.0,0.00014456]
[1762880253866,1.5678971,103570.0,103560.0,0.00014456]
[1762880254068,0.05382,103550.0,103540.0,0.5013972]
[1762880254271,0.75351112,103550.0,103540.0,0.50359523]
[1762880254965,0.59778931,103550.0,103540.0,0.51633523]
[1762880255168,0.58774931,103550.0,103540.0,0.51633523]
[1762880255472,0.58774931,103550.0,103540.0,0.51833523]
[1762880255873,0.58774931,103550.0,103540.0,0.67405704]
[1762880256262,0.56595931,103550.0,103540.0,0.67405704]
[1762880256464,0.0214475,103550.0,103540.0,0.67605704]
[1762880256671,0.36694456,103560.0,103540.0,0.67605704]
[1762880256672,0.56644637,103560.0,103550.0,0.1533359]
[1762880256870,0.58789044,103560.0,103550.0,0.51633393]
[1762880257070,0.59713044,103560.0,103550.0,0.51633393]
[1762880257275,0.59713044,103560.0,103550.0,0.15553393]
[1762880257677,0.59713044,103560.0,103550.0,0.51633393]
[1762880257970,0.59713044,103560.0,103550.0,0.15553393]
[1762880257971,0.75285225,103560.0,103550.0,0.15553393]
[1762880258481,0.75285225,103560.0,103550.0,0.51733393]
[1762880259374,0.38605225,103560.0,103550.0,0.51733393]
[1762880259673,0.84943885,103560.0,103550.0,0.15753393]
[1762880259873,0.75285225,103560.0,103550.0,0.15753393]
[1762880260272,0.37681225,103560.0,103550.0,0.15753393]
[1762880260477,0.74361225,103560.0,103550.0,0.51833393]
[1762880261468,0.84943895,103560.0,103550.0,0.50559393]
[1762880261671,1.26228102,103560.0,103550.0,0.12292393]
[1762880261872,1.26228102,103560.0,103550.0,0.14479393]
[1762880262167,1.26228102,103560.0,103550.0,0.00419803]
[1762880262373,1.56230244,103560.0,103550.0,0.002]
[1762880262581,0.05531,103540.0,103530.0,0.50155406]
[1762880262877,0.75495769,103540.0,103530.0,0.50375209]
[1762880263270,0.85156299,103540.0,103530.0,0.14295209]
[1762880263468,0.75495769,103540.0,103530.0,0.14295209]
[1762880263666,0.75495769,103540.0,103530.0,0.14595209]
[1762880264786,0.85156299,103540.0,103530.0,0.14595209]
[1762880264984,0.75495769,103540.0,103530.0,0.14895209]
[1762880265186,0.85156299,103540.0,103530.0,0.14895209]
[1762880265779,0.75495769,103540.0,103530.0,0.14895209]
[1762880266177,0.85156299,103540.0,103530.0,0.10495209]
[1762880266374,1.0072848,103540.0,103530.0,0.00614456]
[1762880266578,1.3680848,103540.0,103530.0,0.00614456]
[1762880266788,1.56575441,103540.0,103530.0,4.56e-06]
[1762880267088,1.56575441,103540.0,103510.0,0.4574277]
[1762880267089,0.05117,103520.0,103510.0,0.5014277]
[1762880267272,0.75081769,103520.0,103510.0,0.50362573]
[1762880267673,0.37666769,103520.0,103510.0,0.51636573]